fUSD/lending_fUSD_20260417
["ID","MTS","AMOUNT","RATE_DAILY","PERIOD"]
[420653771,1776432648408,-755.54741345,0.0001,2]
[420653772,1776432648417,-166.66,0.00010002,2]
[420653773,1776432648427,-576.36167982,0.00010013,2]
[420653774,1776432648436,-15096.18717233,0.00010013,2]
[420653775,1776432648446,-658.77562408,0.00010137,2]
[420653776,1776432648455,-150.0,0.0001015,2]
[420653777,1776432648464,-163.17,0.0001024,2]
[420653778,1776432648474,-443.69,0.000103,2]
[420653779,1776432648483,-150.0,0.000103,2]
[420653780,1776432648494,-13891.16805385,0.000103,2]
[420653781,1776432648504,-150.0,0.000103,2]
[420653782,1776432648962,-75100.35597178,0.000103,2]
[420653783,1776432648972,-150.0,0.000103,2]
[420653784,1776432648981,-10242.88687448,0.000103,2]
[420653785,1776432648992,-166.66,0.00010333,2]
[420653786,1776432649001,-1910.7005078,0.00010365,2]
[420653787,1776432649011,-868.0,0.00010379,3]
[420653788,1776432649020,-194.72792766,0.00010407,2]
[420653789,1776432649029,-829.12830338,0.00010407,2]
[420653790,1776432649039,-223.2,0.00010412,2]
[420653791,1776432649048,-150.0,0.0001045,2]
[420653792,1776432649058,-1600.0,0.00010482,2]
[420653793,1776432649067,-200.0,0.00010548,2]
[420653794,1776432649076,-151.0,0.00010598,2]
[420653795,1776432649085,-25000.0,0.000106,2]
[420653796,1776432649095,-89958.6169,0.00010601,2]
[420653797,1776432649104,-20000.02,0.00010601,2]
[420653798,1776432649114,-217.56,0.00010642,2]
[420653799,1776432649123,-300.0,0.00010663,2]
[420653800,1776432649132,-300.0,0.00010663,2]
[420653801,1776432649142,-300.0,0.00010663,2]
[420653802,1776432649151,-300.0,0.00010663,2]
[420653803,1776432649160,-300.0,0.00010663,2]
[420653804,1776432649170,-300.0,0.00010663,2]
[420653805,1776432649179,-300.0,0.00010663,2]
[420653806,1776432649188,-300.0,0.00010663,2]
[420653807,1776432649199,-386.0,0.00010663,2]
[420653808,1776432649209,-166.66,0.00010663,2]
[420653809,1776432649218,-500.0,0.00010673,2]
[420653810,1776432649227,-500.0,0.00010673,2]
[420653811,1776432649236,-502.34190409,0.00010673,2]
[420653812,1776432649248,-350.0,0.00010682,2]
[420653813,1776432649257,-350.0,0.00010682,2]
[420653814,1776432649266,-350.0,0.00010682,2]
[420653815,1776432649276,-350.0,0.00010682,2]
[420653816,1776432649285,-350.0,0.00010682,2]
[420653817,1776432649294,-350.0,0.00010682,2]
[420653818,1776432649305,-350.0,0.00010682,2]
[420653819,1776432649314,-350.0,0.00010682,2]
[420653820,1776432649324,-449.0,0.00010682,2]
[420653821,1776432649334,-1347.06860387,0.00010682,2]
[420653822,1776432649344,-150.0,0.00010683,2]
[420653823,1776432649353,-21800.2661493,0.00010701,2]
[420653824,1776432649363,-637.797887,0.00010701,2]
[420653825,1776432649372,-5545.7529945,0.00010701,2]
[420653826,1776432649382,-2999.3577556,0.00010701,2]
[420653827,1776432649392,-200.0,0.00010734,2]
[420653828,1776432649402,-333.33333,0.0001079,2]
[420653829,1776432649412,-333.33333,0.0001079,2]
[420653830,1776432649421,-333.33333,0.0001081,2]
[420653831,1776432649431,-333.33333,0.0001084,2]
[420653832,1776432649440,-165.1389,0.0001089,2]
[420653833,1776432649449,-165.1389,0.0001089,2]
[420653834,1776432649459,-750.0,0.00010897,2]
[420653835,1776432649470,-750.0,0.00010897,2]
[420653836,1776432649480,-750.0,0.00010897,2]
[420653837,1776432649489,-750.0,0.00010897,2]
[420653838,1776432649500,-750.0,0.00010897,2]
[420653839,1776432649509,-750.0,0.00010897,2]
[420653840,1776432649519,-750.0,0.00010897,2]
[420653841,1776432649528,-750.0,0.00010897,2]
[420653842,1776432649538,-750.0,0.00010897,2]
[420653843,1776432649549,-282.0,0.00010897,2]
[420653844,1776432649559,-151.0,0.00010897,2]
[420653845,1776432649570,-1000.0,0.000109,2]
[420653846,1776432649580,-1000.0,0.000109,2]
[420653847,1776432649590,-1000.0,0.000109,2]
[420653848,1776432649599,-1000.0,0.000109,2]
[420653849,1776432649609,-1000.0,0.000109,2]
[420653850,1776432649618,-1000.0,0.000109,2]
[420653851,1776432649627,-1000.0,0.000109,2]
[420653852,1776432649637,-1000.0,0.000109,2]
[420653853,1776432649647,-1000.0,0.000109,2]
[420653854,1776432649657,-1000.0,0.000109,2]
[420653855,1776432649667,-1000.0,0.000109,2]
[420653856,1776432649677,-1000.0,0.000109,2]
[420653857,1776432649687,-1000.0,0.000109,2]
[420653858,1776432649696,-1000.0,0.000109,2]
[420653859,1776432649705,-1000.0,0.000109,2]
[420653860,1776432649715,-1000.0,0.000109,2]
[420653861,1776432649725,-1000.0,0.000109,2]
[420653862,1776432649734,-1000.0,0.000109,2]
[420653863,1776432649745,-1000.0,0.000109,2]
[420653864,1776432649755,-1000.0,0.000109,2]
[420653865,1776432649764,-1000.0,0.000109,2]
[420653866,1776432649775,-1000.0,0.000109,2]
[420653867,1776432649784,-1000.0,0.000109,2]
[420653868,1776432649794,-358.09393378,0.000109,2]
[420653869,1776432649804,-333.33333,0.000109,2]
[420653870,1776432649814,-333.33334,0.000109,2]
[420653871,1776432649824,-151.0,0.000109,2]
[420653872,1776432649834,-150.0,0.0001092,2]
[420653873,1776432649844,-2000.0,0.00010925,2]
[420653874,1776432649853,-158.25,0.00010937,2]
[420653875,1776432649865,-2882.0,0.00010946,2]
[420653876,1776432649874,-736.0,0.00010947,2]
[420653877,1776432649884,-201.93286099,0.00010955,2]
[420653878,1776432649893,-745.65780172,0.00010955,2]
[420653879,1776432649903,-517.47514279,0.00010958,2]
[420653880,1776432649913,-500.0,0.00010958,2]
[420653881,1776432649923,-500.0,0.00010958,3]
[420653882,1776432649933,-500.0,0.00010958,2]
[420653883,1776432649943,-500.0,0.00010958,2]
[420653884,1776432649953,-500.0,0.00010958,2]
[420653885,1776432649963,-500.0,0.00010958,3]
[420653886,1776432649973,-500.0,0.00010958,4]
[420653887,1776432649983,-500.0,0.00010958,2]
[420653888,1776432649995,-500.0,0.00010958,2]
[420653889,1776432650007,-500.0,0.00010958,3]
[420653890,1776432650018,-2000.0,0.00010959,2]
[420653891,1776432650027,-2000.0,0.00010959,2]
[420653892,1776432650037,-200.0,0.00010959,2]
[420653893,1776432650047,-200.0,0.00010959,2]
[420653894,1776432650056,-200.0,0.00010959,2]
[420653895,1776432650065,-200.0,0.00010959,2]
[420653896,1776432650075,-200.0,0.00010959,2]
[420653897,1776432650084,-500.0,0.00010959,2]
[420653898,1776432650093,-150.0,0.00010959,2]
[420653899,1776432650104,-150.0,0.00010959,2]
[420653900,1776432650113,-552.0,0.00010959,2]
[420653901,1776432650123,-4216.0,0.00010959,2]
[420653902,1776432650132,-150.0,0.00010959,2]
[420653903,1776432650142,-1116.0,0.0001096,2]
[420653904,1776432650152,-152.0,0.00010987,8]
[420653905,1776432650161,-537.91,0.00010988,2]
[420653906,1776432650172,-371.54,0.00010989,2]
[420653907,1776432650182,-309.43,0.00010989,2]
[420653908,1776432650191,-255.92,0.00010989,2]
[420653909,1776432650201,-180.93,0.00010989,2]
[420653910,1776432650210,-430.0,0.00010989,2]
[420653911,1776432650220,-688.13,0.00010989,2]
[420653912,1776432650231,-661.9,0.00010989,2]
[420653913,1776432650240,-166.66,0.00010993,2]
[420653914,1776432650251,-1000.0,0.00010999,2]
[420653915,1776432650261,-13228.11688247,0.00011,2]
[420653916,1776432650271,-175.51,0.00011,2]
[420653917,1776432650281,-5400.0,0.00011,3]
[420653918,1776432650292,-1201.29601923,0.00011,2]
[420653919,1776432650301,-2932.02,0.00011,2]
[420653920,1776432650312,-160.26,0.00011025,2]
[420653921,1776432650322,-347.55,0.00011048,2]
[420653922,1776432650333,-729.19,0.0001105,2]
[420653923,1776432650342,-277.95,0.0001106,2]
[420653924,1776432650351,-290.08,0.0001106,2]
[420653925,1776432650360,-205.62,0.0001106,2]
[420653926,1776432650370,-169.821681,0.00011073,2]
[420653927,1776432650379,-500.0,0.00011073,2]
[420653928,1776432650388,-418.29081574,0.00011073,2]
[420653929,1776432650397,-160.58374451,0.00011073,2]
[420653930,1776432650407,-500.0,0.00011073,2]
[420653931,1776432650416,-157.58789548,0.00011073,2]
[420653932,1776432650426,-500.0,0.00011073,2]
[420653933,1776432650436,-500.08874624,0.00011073,2]
[420653934,1776432650446,-305.3792051,0.00011073,2]
[420653935,1776432650455,-500.0,0.00011073,2]
[420653936,1776432650465,-500.0,0.00011073,2]
[420653937,1776432650475,-171.2065889,0.00011073,2]
[420653938,1776432650484,-500.0,0.00011073,2]
[420653939,1776432650493,-500.0,0.00011073,2]
[420653940,1776432650502,-164.60762488,0.00011073,2]
[420653941,1776432650512,-642.74,0.00011086,2]
[420653942,1776432650522,-398.86,0.00011094,2]
[420653943,1776432650531,-547.98,0.00011094,2]
[420653944,1776432650540,-151.0,0.00011096,2]
[420653945,1776432650550,-151.0,0.00011096,2]
[420653946,1776432650559,-151.0,0.00011096,2]
[420653947,1776432650568,-201.76261651,0.00011096,2]
[420653948,1776432650577,-300.0,0.00011098,2]
[420653949,1776432650586,-300.0,0.00011098,2]
[420653950,1776432650595,-300.0,0.00011098,2]
[420653951,1776432650606,-1103.85013062,0.00011098,3]
[420653952,1776432650616,-3366.0,0.00011099,5]
[420653953,1776432650625,-15774.55652295,0.00011099,2]
[420653954,1776432650635,-15774.55652289,0.00011099,2]
[420653955,1776432650645,-15774.55652289,0.00011099,2]
[420653956,1776432650655,-15774.55652289,0.00011099,2]
[420653957,1776432650664,-15774.55652289,0.00011099,2]
[420653958,1776432650673,-15774.55652289,0.00011099,2]
[420653959,1776432650683,-11530.95944086,0.00011099,2]
[420653960,1776432650700,-4243.59708203,0.00011099,2]
[420653961,1776432650709,-15774.55652289,0.00011099,2]
[420653962,1776432650719,-15774.55652289,0.00011099,2]
[420653963,1776432650729,-15774.55652289,0.00011099,2]
[420653964,1776432650739,-61059.32648561,0.00011099,2]
[420653965,1776432650749,-61059.32648561,0.00011099,2]
[420653966,1776432650759,-61059.32648561,0.00011099,2]
[420653967,1776432650769,-61059.32648561,0.00011099,2]
[420653968,1776432650778,-151.0,0.00011099,2]
[420653969,1776432650787,-151.0,0.00011099,2]
[420653970,1776432650797,-151.0,0.00011099,2]
[420653971,1776432650806,-151.0,0.00011099,2]
[420653972,1776432650815,-386.58151,0.00011099,2]
[420653973,1776432650825,-386.58151,0.00011099,2]
[420653974,1776432650835,-386.58151,0.00011099,2]
[420653975,1776432650844,-386.58151,0.00011099,2]
[420653976,1776432650853,-386.58151,0.00011099,2]
[420653977,1776432650863,-386.58151,0.00011099,2]
[420653978,1776432650873,-386.58151,0.00011099,2]
[420653979,1776432650882,-386.58151,0.00011099,2]
[420653980,1776432650892,-823.087372,0.00011099,2]
[420653981,1776432650901,-823.087372,0.00011099,2]
[420653982,1776432650911,-823.087372,0.00011099,2]
[420653983,1776432650922,-823.087372,0.00011099,2]
[420653984,1776432650932,-823.087372,0.00011099,2]
[420653985,1776432650941,-823.087372,0.00011099,2]
[420653986,1776432650951,-823.087372,0.00011099,2]
[420653987,1776432650960,-823.087372,0.00011099,2]
[420653988,1776432650970,-282.103604,0.00011099,2]
[420653989,1776432650979,-151.0,0.00011099,2]
[420653990,1776432650990,-282.103604,0.00011099,2]
[420653991,1776432651003,-151.0,0.00011099,2]
[420653992,1776432651012,-282.103604,0.00011099,2]
[420653993,1776432651023,-282.103604,0.00011099,2]
[420653994,1776432651032,-282.103604,0.00011099,2]
[420653995,1776432651042,-282.103604,0.00011099,2]
[420653996,1776432651052,-282.103604,0.00011099,2]
[420653997,1776432651062,-282.103604,0.00011099,2]
[420653998,1776432651072,-300.0,0.00011099,2]
[420653999,1776432651085,-868.0,0.00011105,3]
[420654000,1776432651095,-327.26,0.00011114,2]
[420654001,1776432651106,-321.73,0.00011114,2]
[420654002,1776432651116,-991.0,0.00011125,2]
[420654003,1776432651125,-500.0,0.00011125,2]
[420654004,1776432651135,-500.0,0.00011125,2]
[420654005,1776432651144,-500.0,0.00011125,2]
[420654006,1776432651153,-500.0,0.00011125,2]
[420654007,1776432651163,-500.0,0.00011125,2]
[420654008,1776432651173,-500.0,0.00011125,2]
[420654009,1776432651183,-500.0,0.00011125,2]
[420654010,1776432651193,-500.0,0.00011125,2]
[420654011,1776432651203,-500.0,0.00011125,2]
[420654012,1776432651212,-500.0,0.00011125,2]
[420654013,1776432651221,-500.0,0.00011125,2]
[420654014,1776432651231,-500.0,0.00011125,2]
[420654015,1776432651240,-500.0,0.00011125,2]
[420654016,1776432651256,-500.0,0.00011125,2]
[420654017,1776432651265,-500.0,0.00011125,2]
[420654018,1776432651275,-500.0,0.00011125,2]
[420654019,1776432651286,-531.0,0.00011125,2]
[420654020,1776432651295,-500.0,0.00011125,2]
[420654021,1776432651304,-500.0,0.00011125,2]
[420654022,1776432651314,-500.0,0.00011125,2]
[420654023,1776432651323,-500.0,0.00011125,2]
[420654024,1776432651332,-500.0,0.00011125,2]
[420654025,1776432651342,-500.0,0.00011125,2]
[420654026,1776432651352,-500.0,0.00011125,2]
[420654027,1776432651362,-500.0,0.00011125,2]
[420654028,1776432651372,-539.0,0.00011125,2]
[420654029,1776432651382,-500.0,0.00011125,2]
[420654030,1776432651391,-500.0,0.00011125,2]
[420654031,1776432651401,-500.0,0.00011125,2]
[420654032,1776432651411,-500.0,0.00011125,2]
[420654033,1776432651421,-500.0,0.00011125,2]
[420654034,1776432651431,-500.0,0.00011125,2]
[420654035,1776432651440,-500.0,0.00011125,2]
[420654036,1776432651449,-500.0,0.00011125,2]
[420654037,1776432651459,-500.0,0.00011125,2]
[420654038,1776432651469,-500.0,0.00011125,2]
[420654039,1776432651478,-500.0,0.00011125,2]
[420654040,1776432651488,-500.0,0.00011125,2]
[420654041,1776432651500,-500.0,0.00011125,2]
[420654042,1776432651510,-500.0,0.00011125,2]
[420654043,1776432651519,-500.0,0.00011125,2]
[420654044,1776432651528,-500.0,0.00011125,2]
[420654045,1776432651538,-500.0,0.00011125,2]
[420654046,1776432651547,-500.0,0.00011125,2]
[420654047,1776432651557,-500.0,0.00011125,2]
[420654048,1776432651566,-500.0,0.00011125,2]
[420654049,1776432651576,-500.0,0.00011125,2]
[420654050,1776432651586,-500.0,0.00011125,2]
[420654051,1776432651595,-500.0,0.00011125,2]
[420654052,1776432651605,-500.0,0.00011125,2]
[420654053,1776432651614,-500.0,0.00011125,2]
[420654054,1776432651624,-500.0,0.00011125,2]
[420654055,1776432651634,-500.0,0.00011125,2]
[420654056,1776432651643,-500.0,0.00011125,2]
[420654057,1776432651653,-500.0,0.00011125,2]
[420654058,1776432651662,-500.0,0.00011125,2]
[420654059,1776432651671,-500.0,0.00011125,2]
[420654060,1776432651680,-500.0,0.00011125,2]
[420654061,1776432651689,-500.0,0.00011125,2]
[420654062,1776432651699,-500.0,0.00011125,2]
[420654063,1776432651708,-500.0,0.00011125,2]
[420654064,1776432651717,-500.0,0.00011125,2]
[420654065,1776432651726,-500.0,0.00011125,2]
[420654066,1776432651737,-500.0,0.00011125,2]
[420654067,1776432651748,-500.0,0.00011125,2]
[420654068,1776432651757,-500.0,0.00011125,2]
[420654069,1776432651767,-500.0,0.00011125,2]
[420654070,1776432651776,-500.0,0.00011125,2]
[420654071,1776432651786,-500.0,0.00011125,2]
[420654072,1776432651795,-500.0,0.00011125,2]
[420654073,1776432651804,-500.0,0.00011125,2]
[420654074,1776432651813,-500.0,0.00011125,2]
[420654075,1776432651822,-500.0,0.00011125,2]
[420654076,1776432651832,-500.0,0.00011125,2]
[420654077,1776432651841,-500.0,0.00011125,2]
[420654078,1776432651851,-500.0,0.00011125,2]
[420654079,1776432651860,-513.0,0.00011125,2]
[420654080,1776432651870,-500.0,0.00011125,2]
[420654081,1776432651881,-500.0,0.00011125,2]
[420654082,1776432651891,-500.0,0.00011125,2]
[420654083,1776432651901,-500.0,0.00011125,2]
[420654084,1776432651910,-500.0,0.00011125,2]
[420654085,1776432651921,-500.0,0.00011125,2]
[420654086,1776432651931,-500.0,0.00011125,2]
[420654087,1776432651941,-500.0,0.00011125,2]
[420654088,1776432651950,-500.0,0.00011125,2]
[420654089,1776432651960,-500.0,0.00011125,2]
[420654090,1776432651969,-500.0,0.00011125,2]
[420654091,1776432651978,-500.0,0.00011125,2]
[420654092,1776432651988,-500.0,0.00011125,2]
[420654093,1776432651998,-500.0,0.00011125,2]
[420654094,1776432652008,-500.0,0.00011125,2]
[420654095,1776432652018,-500.0,0.00011125,2]
[420654096,1776432652028,-500.0,0.00011125,2]
[420654097,1776432652038,-500.0,0.00011125,2]
[420654098,1776432652048,-500.0,0.00011125,2]
[420654099,1776432652058,-500.0,0.00011125,2]
[420654100,1776432652070,-500.0,0.00011125,2]
[420654101,1776432652079,-500.0,0.00011125,2]
[420654102,1776432652089,-500.0,0.00011125,2]
[420654103,1776432652099,-500.0,0.00011125,2]
[420654104,1776432652109,-500.0,0.00011125,2]
[420654105,1776432652119,-500.0,0.00011125,2]
[420654106,1776432652128,-500.0,0.00011125,2]
[420654107,1776432652138,-500.0,0.00011125,2]
[420654108,1776432652148,-500.0,0.00011125,2]
[420654109,1776432652158,-500.0,0.00011125,2]
[420654110,1776432652168,-500.0,0.00011125,2]
[420654111,1776432652178,-500.0,0.00011125,2]
[420654112,1776432652187,-799.0,0.00011125,2]
[420654113,1776432652197,-152.0,0.00011159,9]
[420654114,1776432652207,-500.0,0.00011165,7]
[420654115,1776432652217,-500.0,0.00011165,7]
[420654116,1776432652227,-500.0,0.00011165,7]
[420654117,1776432652237,-500.0,0.00011165,7]
[420654118,1776432652248,-500.0,0.00011165,7]
[420654119,1776432652258,-500.0,0.00011165,7]
[420654120,1776432652268,-500.0,0.00011165,7]
[420654121,1776432652278,-500.0,0.00011165,7]
[420654122,1776432652287,-500.0,0.00011165,7]
[420654123,1776432652297,-252.7727958,0.00011165,7]
[420654124,1776432652307,-300.0,0.00011166,2]
[420654125,1776432652316,-28830.0,0.000112,2]
[420654126,1776432652326,-150.0,0.0001122,2]
[420654127,1776432652336,-208.67,0.0001122,2]
[420654128,1776432652346,-321.56,0.0001122,2]
[420654129,1776432652355,-455.45,0.0001122,2]
[420654130,1776432652365,-302.6,0.0001122,2]
[420654131,1776432652375,-500.0,0.00011221,2]
[420654132,1776432652386,-1061.76232514,0.00011221,2]
[420654133,1776432652396,-150.0,0.00011233,2]
[420654134,1776432652406,-156.22,0.0001124,2]
[420654135,1776432652416,-303.94454085,0.00011288,2]
[420654136,1776432652426,-166.66,0.00011323,2]
[420654137,1776432652436,-155.0,0.00011329,2]
[420654138,1776432652446,-155.0,0.00011329,2]
[420654139,1776432652455,-152.0,0.0001133,10]
[420654140,1776432652465,-300.0,0.00011399,2]
[420654141,1776432652474,-2300.0,0.000114,4]
[420654142,1776432652484,-251.74228695,0.00011401,2]
[420654143,1776432652494,-61059.32648561,0.00011402,2]
[420654144,1776432652504,-823.087372,0.00011402,2]
[420654145,1776432652514,-823.087372,0.00011402,2]
[420654146,1776432652524,-823.087372,0.00011402,2]
[420654147,1776432652534,-823.087372,0.00011402,2]
[420654148,1776432652543,-151.0,0.00011408,2]
[420654149,1776432652554,-537.91,0.00011444,2]
[420654150,1776432652563,-5050.0,0.00011463,7]
[420654151,1776432652573,-165.0,0.000115,2]
[420654152,1776432652584,-1000.0,0.000115,2]
[420654153,1776432652594,-20005.03478751,0.000115,2]
[420654154,1776432652605,-2300.0,0.000115,4]
[420654155,1776432652614,-300.0,0.000115,2]
[420654156,1776432652624,-300.0,0.000115,2]
[420654157,1776432652633,-300.0,0.000115,2]
[420654158,1776432652644,-300.0,0.000115,2]
[420654159,1776432652653,-300.0,0.000115,2]
[420654160,1776432652663,-300.0,0.000115,2]
[420654161,1776432652673,-300.0,0.000115,2]
[420654162,1776432652683,-300.0,0.000115,2]
[420654163,1776432652693,-174.0,0.000115,2]
[420654164,1776432652703,-5531.0,0.000115,3]
[420654165,1776432652714,-152.0,0.00011502,11]
[420654166,1776432652724,-209.40437684,0.00011503,2]
[420654167,1776432652735,-7505.62,0.00011507,2]
[420654168,1776432652747,-160.26,0.00011507,2]
[420654169,1776432652757,-150.0,0.0001152,2]
[420654170,1776432652767,-151.0,0.00011535,2]
[420654171,1776432652778,-1116.0,0.00011537,2]
[420654172,1776432652788,-158.25,0.00011544,2]
[420654173,1776432652798,-787.28110921,0.00011544,2]
[420654174,1776432652808,-2300.0,0.000116,4]
[420654175,1776432652818,-1000.0,0.00011621,2]
[420654176,1776432652827,-1000.0,0.00011621,2]
[420654177,1776432652837,-1000.0,0.00011621,2]
[420654178,1776432652846,-1000.0,0.00011621,2]
[420654179,1776432652856,-1000.0,0.00011621,2]
[420654180,1776432652866,-500.0,0.00011621,2]
[420654181,1776432652877,-1000.0,0.00011621,2]
[420654182,1776432652887,-166.66,0.00011653,2]
[420654183,1776432652897,-1000.0,0.00011654,2]
[420654184,1776432652907,-283.13219254,0.0001166,2]
[420654185,1776432652918,-1000.0,0.00011666,2]
[420654186,1776432652929,-152.0,0.00011674,12]
[420654187,1776432652940,-1000.0,0.00011691,2]
[420654188,1776432652954,-1000.0,0.00011696,2]
[420654189,1776432652964,-9789.82872468,0.000117,2]
[420654190,1776432652974,-2300.0,0.000117,4]
[420654191,1776432652985,-5531.0,0.000117,5]
[420654192,1776432652997,-1000.0,0.00011702,2]
[420654193,1776432653007,-1000.0,0.00011706,2]
[420654194,1776432653017,-1000.0,0.00011715,2]
[420654195,1776432653027,-1000.0,0.00011716,2]
[420654196,1776432653037,-1000.0,0.00011719,2]
[420654197,1776432653351,-556.20636055,0.00011724,2]
[420654198,1776432653362,-1000.0,0.0001173,2]
[420654199,1776432653373,-1000.0,0.00011739,2]
[420654200,1776432653383,-1000.0,0.00011742,2]
[420654201,1776432653393,-266.61,0.00011758,2]
[420654202,1776432653403,-628.16482533,0.0001176,2]
[420654203,1776432653413,-1000.0,0.00011773,2]
[420654204,1776432653423,-151.0,0.00011778,2]
[420654205,1776432653434,-151.0,0.00011778,2]
[420654206,1776432653443,-151.0,0.00011778,2]
[420654207,1776432653454,-1000.0,0.00011792,2]
[420654208,1776432653465,-1000.0,0.00011799,2]
[420654209,1776432653475,-150.02,0.00011799,2]
[420654210,1776432653485,-387.52,0.00011799,2]
[420654211,1776432653494,-380.12,0.00011799,2]
[420654212,1776432653504,-734.66,0.00011799,2]
[420654213,1776432653514,-166.09,0.00011799,2]
[420654214,1776432653524,-316.95,0.00011799,2]
[420654215,1776432653535,-326.45,0.00011799,2]
[420654216,1776432653544,-436.12,0.00011799,2]
[420654217,1776432653554,-150.01,0.00011799,2]
[420654218,1776432653565,-5300.0,0.000118,3]
[420654219,1776432653576,-61059.32648561,0.000118,2]
[420654220,1776432653586,-3004.0,0.000118,4]
[420654221,1776432653595,-282.103604,0.000118,2]
[420654222,1776432653604,-282.103604,0.000118,2]
[420654223,1776432653615,-282.103604,0.000118,2]
[420654224,1776432653625,-282.103604,0.000118,2]
[420654225,1776432653635,-1905.69,0.00011802,2]
[420654226,1776432653645,-150.0,0.00011802,2]
[420654227,1776432653656,-150.0,0.0001182,2]
[420654228,1776432653667,-947.0,0.00011821,2]
[420654229,1776432653677,-1000.0,0.00011821,2]
[420654230,1776432653687,-868.0,0.00011832,3]
[420654231,1776432653697,-157.4443109,0.00011833,2]
[420654232,1776432653706,-407.94,0.00011837,2]
[420654233,1776432653718,-1265.66,0.00011837,2]
[420654234,1776432653728,-477.58,0.00011837,2]
[420654235,1776432653738,-222.89,0.00011845,2]
[420654236,1776432653751,-152.0,0.00011846,13]
[420654237,1776432653761,-357.4443109,0.00011859,2]
[420654238,1776432653772,-400.16,0.00011864,2]
[420654239,1776432653782,-459.01,0.00011864,2]
[420654240,1776432653791,-422.92,0.00011864,2]
[420654241,1776432653801,-367.39,0.00011864,2]
[420654242,1776432653810,-381.12,0.00011864,2]
[420654243,1776432653820,-721.46,0.00011864,2]
[420654244,1776432653830,-177.28,0.00011864,2]
[420654245,1776432653839,-327.63,0.00011864,2]
[420654246,1776432653849,-285.61,0.00011864,2]
[420654247,1776432653859,-1000.0,0.00011872,2]
[420654248,1776432653869,-667.56794285,0.00011877,2]
[420654249,1776432653879,-1000.0,0.00011878,2]
[420654250,1776432653888,-1000.0,0.00011882,2]
[420654251,1776432653899,-1000.0,0.00011884,2]
[420654252,1776432653908,-1000.0,0.00011892,2]
[420654253,1776432653918,-1000.0,0.00011894,2]
[420654254,1776432653928,-1000.0,0.00011895,2]
[420654255,1776432653937,-1085.1319381,0.00011899,3]
[420654256,1776432653947,-4458.97425499,0.000119,2]
[420654257,1776432653957,-151.0,0.000119,2]
[420654258,1776432653966,-10000.0,0.000119,2]
[420654259,1776432653976,-576.36167982,0.000119,2]
[420654260,1776432653986,-151.0,0.000119,2]
[420654261,1776432653999,-386.58151,0.000119,2]
[420654262,1776432654008,-386.58151,0.000119,2]
[420654263,1776432654018,-386.58151,0.000119,2]
[420654264,1776432654028,-386.58151,0.000119,2]
[420654265,1776432654037,-15096.18717233,0.000119,2]
[420654266,1776432654046,-9659.86036608,0.000119,2]
[420654267,1776432654056,-222.78,0.00011901,2]
[420654268,1776432654065,-216.09,0.00011901,2]
[420654269,1776432654074,-174.97357983,0.00011903,6]
[420654270,1776432654083,-151.0,0.00011916,2]